Cogmind - Beta 14 @@@ ROGUE MODE // 2025.03.03 @ 21:59:32 Player: Pain3D Result: Destroyed by G-34 Mercenary with Small Laser Performance ------------- Evolutions (1) 500 Regions Visited (2) 400 Robots Destroyed (51) 255 Value Destroyed (1179) 1179 Prototype IDs (1) 20 Alien Tech Used (0) 0 Bonus (0) 0 TOTAL SCORE: 2354 Bonus ------- None Cogmind --------- Core Integrity 0/400 Matter 222/300 Energy 81/125 System Corruption 6% Temperature Cool (39) Movement Treading (225) Ox1 Location -9/Materials Parts ------- > --- POWER (1) -------- Light Ion Engine > --- PROPULSION (2) --- Advanced Treads Advanced Treads > --- UTILITY (4) ------ High-capacity Storage Unit Sensor Array Signal Interpreter Improved Power Shielding > --- WEAPON (2) ------- Light EM Pulse Cannon Rocket Launcher > --- INVENTORY (20) --- Light Treads Advanced Treads Advanced Treads Carbon-fiber Leg Carbon-fiber Leg Carbon-fiber Leg Carbon-fiber Leg Large Storage Unit Visual Processing Unit Medium Armor Plating Small Laser Beam Rifle Light Assault Rifle Flak Cannon Mining Laser Plasma Cutter Peak State ------------ > --- POWER ------------ Light Ion Engine > --- PROPULSION ------- Advanced Treads Advanced Treads > --- UTILITY ---------- High-capacity Storage Unit Sensor Array Signal Interpreter Improved Power Shielding > --- WEAPON ----------- Beam Rifle Light EM Pulse Cannon > --- INVENTORY -------- Light Treads Advanced Treads Advanced Treads Carbon-fiber Leg Carbon-fiber Leg Carbon-fiber Leg Carbon-fiber Leg Large Storage Unit Visual Processing Unit Medium Armor Plating Small Laser Light Assault Rifle Flak Cannon Rocket Launcher Mining Laser Plasma Cutter [Rating: 20] Favorites ----------- Power Light Ion Engine Engine Light Ion Engine Propulsion Light Treads Treads Light Treads Leg Aluminum Leg Wheel Wheel Utility Sensor Array Device Sensor Array Storage High-capacity Storage Unit Processor Signal Interpreter Protection Improved Power Shielding Weapon Light Assault Rifle Energy Gun Beam Rifle Energy Cannon Light EM Pulse Cannon Ballistic Gun Light Assault Rifle Launcher Grenade Launcher Build | -11 -10 -9 ------- Run | Yrd Mat Mat Slots Evolved 2 | . . 2 Power . | . . . Propulsion . | . . . Utility 2 | . . 2 Weapon . | . . . Parts Attached 40 | 6 3 31 Power 6 | 1 1 4 Engine 6 | 1 1 4 Core . | . . . Reactor . | . . . Propulsion 12 | 2 . 10 Treads 6 | 2 . 4 Leg 2 | . . 2 Wheel 4 | . . 4 Hover . | . . . Flight . | . . . Utility 7 | 1 2 4 Device 1 | . 1 . Storage 3 | 1 1 1 Processor 2 | . . 2 Hackware . | . . . Protection 1 | . . 1 Artifact . | . . . Weapon 15 | 2 . 13 Energy Gun 1 | . . 1 Energy Cannon 5 | . . 5 Ballistic Gun 7 | 2 . 5 Ballistic Cannon . | . . . Launcher 2 | . . 2 Special Weapon . | . . . Impact Weapon . | . . . Slashing Weapon . | . . . Piercing Weapon . | . . . Special Melee Weapon . | . . . Unidentified Prototypes 1 | . . 1 Corrupted Parts 1 | . . 1 System Corruption 4 | . . 4 Parts Lost 12 | . 1 11 Power 4 | . 1 3 Propulsion 4 | . . 4 Utility . | . . . Weapon 4 | . . 4 Highest Loss Streak 4 | . 1 4 To Critical Strikes . | . . . Average Slot Usage (%) 95 | . 97 95 Engine 10 | . 13 9 Treads 20 | . 28 17 Wheel 1 | . . 2 Device 11 | . 11 11 Storage 11 | . 14 11 Processor 14 | . . 20 Protection 1 | . . 1 Energy Gun 1 | . . 2 Energy Cannon 5 | . . 7 Ballistic Gun 14 | . 28 8 Launcher 1 | . . 2 Peak Build Rating 20 | 6 7 20 Average Rating 10 | 4 6 12 On Entrance 4 | . 6 7 Naked Turns . | . . . Heaviest Build 56 | 10 26 56 Greatest Support 44 | 40 40 44 Greatest Overweight (x) 5 | 3 . 5 Average Overweight (x) . | . . 1 Largest Inventory Capacity 20 | 8 15 20 Average Capacity 16 | 7 11 19 Most Carried 17 | 5 9 17 Average Carried 8 | 1 3 10 Final Capacity 20 | 8 15 20 Final Carried 16 | 1 9 16 Class Distribution -------------------- 100% | Mutant Dominant Class ---------------- Mutant | -10/Materials Mutant | -9/Materials Resources | -11 -10 -9 ----------- Run | Yrd Mat Mat Matter Collected 901 | 225 120 556 Remotely . | . . . Salvage Created 1378 | . 303 1075 Parts 111 | . 22 89 Haulers Intercepted . | . . . Recyclers Shooed 1 | . . 1 Parts Field Recycled . | . . . Retrieved Matter . | . . . Parts Self-Destructed . | . . . Prevented . | . . . Kills | -11 -10 -9 ------- Run | Yrd Mat Mat Combat Hostiles Destroyed 39 | . 6 33 Guns 25 | . 6 19 Cannons 9 | . . 9 AOE 5 | . . 5 Classes Destroyed 10 | . 4 6 Worker 1 | . . 1 Builder 2 | . . 2 Recycler 2 | . 1 1 Mechanic 1 | . . 1 Watcher 6 | . 2 4 Swarmer 16 | . 2 14 Grunt 17 | . 4 13 Brawler 1 | . . 1 Duelist 1 | . . 1 Sentry 4 | . . 4 Best Kill Streak 13 | . 4 13 Combat Bots Only 10 | . 3 10 Max Kills in Single Turn 2 | . 1 2 Gunslinging . | . . . Exploded 1 | . . 1 Melee . | . . . Uniques/NPCs Destroyed . | . . . Combat | -11 -10 -9 -------- Run | Yrd Mat Mat Hostile Shots Fired 277 | . 47 230 Missed 92 | . 21 71 Damage Taken 2091 | . 287 1804 Core 458 | . 54 404 Absorbed by Shields . | . . . Redirected to Shielding 14 | . . 14 Core Remaining (%) 89 | 100 78 . Volleys Fired 136 | . 30 106 Largest 2 | . 2 2 Hottest 112 | . 40 112 Shots Fired 238 | . 60 178 Gun 178 | . 60 118 Cannon 45 | . . 45 Launcher 15 | . . 15 Special . | . . . Kinetic 163 | . 60 103 Thermal 15 | . . 15 Explosive 15 | . . 15 Electromagnetic 45 | . . 45 Robot Hit Streak 16 | . 10 16 Robot Miss Streak 4 | . 4 3 Penetration Max . | . . . Secondary Targets 4 | . 2 2 Max Gunslinging Chain 1 | . 1 1 Shots Hit Robots 160 | . 39 121 Core Hits 85 | . 18 67 Critical Kills . | . . . Critical Parts Destroyed 1 | . . 1 Critical Strikes 4 | . . 4 Burn 2 | . . 2 Destroy 1 | . . 1 Corrupt 1 | . . 1 Melee Attacks . | . . . Impact . | . . . Slashing . | . . . Piercing . | . . . Sneak Attacks . | . . . Combat Hostiles . | . . . Follow-up Attacks . | . . . Damage Inflicted 2779 | . 342 2437 Guns 1187 | . 342 845 Cannons 830 | . . 830 Explosions 758 | . . 758 Melee . | . . . Ramming 4 | . . 4 Kinetic 1055 | . 342 713 Thermal 214 | . . 214 Explosive 676 | . . 676 Electromagnetic 830 | . . 830 Impact . | . . . Slashing . | . . . Piercing . | . . . Highest Corruption 6 | . 2 6 Average Corruption 4 | . 2 4 Corruption Purged . | . . . Corruption Blocked . | . . . Effects 29 | . . 29 Message Errors 8 | . . 8 Matter Fused 5 | . . 5 Heat Flow Errors 3 | . . 3 Energy Discharges 4 | . . 4 Data Loss (minor) 4 | . . 4 Data Loss (major) 1 | . . 1 Misfires 2 | . . 2 Alerts 1 | . . 1 Weapon Failures 1 | . . 1 Overload Shots . | . . . Overflow Damage 19 | . . 19 Projectiles 18 | . . 18 Explosions 1 | . . 1 Melee . | . . . Knockbacks . | . . . Impact . | . . . Kinetic . | . . . Secondary . | . . . Self-Inflicted Damage 171 | . . 171 Shots 7 | . . 7 Rammed 1 | . . 1 Targets Rammed 1 | . . 1 Kicked . | . . . Crushed . | . . . Highest Temperature 419 | . 15 419 Average Temperature 82 | . 9 88 Received Heat Transfer 561 | . 114 447 Effects 4 | . . 4 Shutdowns 2 | . . 2 Matter Decay 1 | . . 1 Short Circuit 1 | . . 1 Siege Activations . | . . . Robots Corrupted . | . . . Combat Hostiles . | . . . Parts Fried 1 | . . 1 Impact Corruptions . | . . . Robots Melted . | . . . Combat Hostiles . | . . . Parts Melted . | . . . Heat Transferred 631 | . . 631 Parts Sabotaged . | . . . Parts Stolen . | . . . Parts Stripped . | . . . Power Chain Reactions 2 | . . 2 Alert | -11 -10 -9 ------- Run | Yrd Mat Mat Peak Influence 402 | . 177 402 Initial 24 | . . 24 Average 174 | . 62 234 Maximum Alert Level 2 | . . 2 Low Security (%) 49 | 100 100 24 Level 1 48 | . . 72 Level 2 2 | . . 3 Level 3 . | . . . Level 4 . | . . . Level 5 . | . . . High Security . | . . . Max Security . | . . . Squads Dispatched 2 | . 1 1 Investigation . | . . . Extermination . | . . . Reinforcement 2 | . 1 1 Assault . | . . . Garrison . | . . . Intercept . | . . . Searches Triggered . | . . . Construction Impeded . | . . . Haulers Reinforced . | . . . Active Scanning Responses . | . . . Cargo Convoy Interrupts . | . . . Stealth | -11 -10 -9 --------- Run | Yrd Mat Mat Distress Signals 4 | . 1 3 Communications Jammed . | . . . Distress Signals . | . . . Times Spotted 56 | . 11 45 Peak Tracking Total 7 | . 5 7 Tactical Retreats 1 | . . 1 Traps | -11 -10 -9 ------- Run | Yrd Mat Mat Traps Triggered 3 | . 1 2 Indirectly . | . . . Trap Hack Attempts . | . . . Triggered . | . . . Disarmed . | . . . Reprogrammed . | . . . Reused . | . . . Traps Extracted . | . . . Installed . | . . . Triggered . | . . . Machines | -11 -10 -9 ---------- Run | Yrd Mat Mat Machines Disabled 2 | . . 2 Max in Single Turn 1 | . . 1 Machines Repaired . | . . . Machines Dismantled . | . . . Machines Sabotaged . | . . . Overloaded Fab Kills . | . . . Hacking | -11 -10 -9 --------- Run | Yrd Mat Mat Machines Accessed . | . . . Terminals . | . . . Fabricators . | . . . Repair Stations . | . . . Recycling Units . | . . . Scanalyzers . | . . . Garrison Access . | . . . Total Hacks . | . . . Successful . | . . . Failed . | . . . Catastrophic . | . . . Database Lockouts . | . . . Manual . | . . . Terminals . | . . . Fabricators . | . . . Repair Stations . | . . . Recycling Units . | . . . Scanalyzers . | . . . Garrison Access . | . . . Terminal Hacks . | . . . Fabricator Hacks . | . . . Repair Station Hacks . | . . . Recycling Unit Hacks . | . . . Scanalyzer . | . . . Garrison Access Hacks . | . . . Unauthorized Hacks . | . . . Terminals . | . . . Fabricators . | . . . Repair Stations . | . . . Recycling Units . | . . . Scanalyzers . | . . . Garrison Access . | . . . Data Cores Recovered . | . . . Used . | . . . Hacking Detections . | . . . Full Trace Events . | . . . Feedback Events . | . . . Feedback Blocked . | . . . Robot Schematics Acquired . | . . . Robots Built . | . . . Authchips . | . . . Time . | . . . Total Robot Build Rating . | . . . Part Schematics Acquired . | . . . Parts Built . | . . . Authchips . | . . . Time . | . . . Total Part Build Rating . | . . . Parts Repaired . | . . . Time . | . . . Parts Recycled . | . . . Recycled Matter . | . . . Retrieved Matter . | . . . Retrieved Components . | . . . Parts Scanalyzed . | . . . Part Schematics Acquired . | . . . Parts Damaged . | . . . Bothacking | -11 -10 -9 ------------ Run | Yrd Mat Mat Used RIF Installer . | . . . Robots Hacked . | . . . Non-combat . | . . . Combat . | . . . Robot Hacks Applied . | . . . Relay Couplers Released . | . . . Fabnet Peak Effective % . | . . . Robots Rewired . | . . . Allies Hacked . | . . . Hacks Repelled . | . . . Allies | -11 -10 -9 -------- Run | Yrd Mat Mat Total Allies . | . . . Largest Group . | . . . Highest-Rated Group . | . . . Highest-Rated Ally . | . . . Total Orders . | . . . Ally Attacks . | . . . Total Damage . | . . . Kills . | . . . Allies Corrupted . | . . . Allies Melted . | . . . Intel | -11 -10 -9 ------- Run | Yrd Mat Mat Robot Analysis Total . | . . . Derelict Logs Recovered . | . . . Drone Launches . | . . . Drone Recoveries . | . . . Exploration | -11 -10 -9 ------------- Run | Yrd Mat Mat Turns Passed 2470 | 94 728 1648 Spaces Moved 1025 | 53 389 583 Core 14 | 14 . . Treads 928 | 39 389 500 Legs 11 | . . 11 Wheels 72 | . . 72 Hover . | . . . Flight . | . . . Fastest Speed 50 | 50 160 110 Average Speed 193 | 147 160 220 Slowest Speed 400 | 200 160 400 Overloaded Moves . | . . . Propulsion Burnouts . | . . . Robots Hopped . | . . . Cave-ins Triggered . | . . . Exploration Rate (%) 38 | 4 58 53 Regions Visited 2 Branch Regions . Pre-discovered Areas . | . . . Known Exits Taken . | . . . Unknown Exits Taken 2 | 1 1 . Scrap Searched . | . . . Spaces Dug . | . . . Terrain Destroyed 102 | . . 102 Melee . | . . . Projectile . | . . . AOE 102 | . . 102 Terrain Rammed . | . . . Walls Destroyed . | . . . Machines Disabled . | . . . Actions | -11 -10 -9 --------- Run | Yrd Mat Mat Total 1297 | 69 447 781 Wait 35 | 4 14 17 Move 1023 | 52 388 583 Hop . | . . . Pick Up 51 | 7 11 33 Fast Attach . | . . . Attach 23 | 6 2 15 Detach . | . . . Swap 17 | . 1 16 Drop 11 | . 1 10 Fire 136 | . 30 106 Melee . | . . . Ram . | . . . Kick . | . . . Crush 1 | . . 1 Escape Stasis . | . . . Rewire . | . . . Trap . | . . . Miscellaneous . | . . . Route ------- -11/Scrapyard -10/Materials (discovered 3 exits: [*Mat x2] / [*Min]) -9/Materials (discovered 1 exit: [*Min]) History --------- Turn | Location | Event 20 | -11/Scrapyard | Discovered new exit (range 16) 95 | -11/Scrapyard | Entered Materials 309 | -10/Materials | Build established: Mutant 313 | -10/Materials | Discovered new exit (range 15) 478 | -10/Materials | Discovered new exit (range 10) 672 | -10/Materials | Discovered new exit (range 10) 823 | -10/Materials | Entered another Materials area 823 | -9/Materials | Evolved 2 slots: Utility x2 1132 | -9/Materials | Lost 3 parts (1p1n1w) 1367 | -9/Materials | Discovered new exit (range 16) 1373 | -9/Materials | Core integrity fell below 50% 1392 | -9/Materials | Lost 4 parts (1p1n2w) 1409 | -9/Materials | Destroyed 10 combat bots 2134 | -9/Materials | Core integrity fell below 20% 2471 | -9/Materials | Destroyed by G-34 Mercenary with Small Laser Last Messages --------------- Acquired 25 matter. K-01 Serf collects debris. The unstable cave ceiling collapses. K-01 Serf collects debris. R-06 Scavenger collects Lgt. Treads. K-01 Serf collects debris. Acquired 16 matter. System corrupted: Heat flow error (+168). R-06 Scavenger collects Rnf. Ion Engine. The unstable cave ceiling collapses. K-01 Serf collects debris. Y|AC5SX|QYA Y-45 Defender destroyed. Map ----- +----------------------------------------------------+ | + #????????+ #??????? ??? ????????????? | | # #????????# #??????? ??????????????????? | | * # #????????# #??????????????????????????? | | * # #????????# #??????????????????????????? | | ## #+####????????# #??????????????????????????? | | # #???????????# #??????????????????????????? | | # ####???????????# ??????????????????????????? | | # #??????????????? #??????????????????????????? | | # #??????????????? ???????????????????????????? | | # #?????????????????????????????????????????????? | | # #????????????????????????###??????????????????? | | # #????????????????????????[ ????????????????? | | ## #???????????????????????? =????????????????# | | ## #???????????????????????? #? #???????????# | | #???????????????????????? /? +???????????# | | #???????????????????##??# r## #???????????# | | #??????????????????## ### # #????######## | | #??????????????????#! [[ ##### #? | | #??????????????????# [ # #? | | #??????????????????# #? | | #??????????????????# "" g ? #? | | #??????????????????# T" ??##### #? | | #??????????????????# "" #???## # ##? | | #??????????????????# Y ###### ### #? | | #?????????????## ### a ## | | #?????? o @[%[ # | | #?????????????## [ ### # % # | | ######????????????????## # # # | | # #?????????????????# """ # # | | + !!!#?????????????????#| "T" # | | # !!!#?????????????????# # ##### | | !! #?????????????????#[ ! ] + #???# | | #?????????????????##########+###### | | "" #???????????????????????# ## " | | "T #???????????????????????# / ## """ | | "" #???????????????????????# ## """ | | # #???????????????????????# """ ## | | ########???????????????????????# """ ########## | | ???????????????????????????????# """ #????????? | | ???????????????????????????????# ! """ #????????? | | ???????????????????????????????# """ #????????? | | ???????????????????????????????# #????????? | | ???????????????????????????????#######??#????????? | | ?????????????????????????????????????????????????? | | ?????????????????????????????????????????????????? | | ?????????????????????????????????????????????????? | | ?????????????????????????????????????????????????? | | ?????????????????????????????????????????????????? | | ?????????????????????????????????????????????????? | | | +----------------------------------------------------+ Best States ------------- Heat Dissipation 28 Energy Generation 12 Energy Capacity 265 Matter Stores 300 Matter Capacity 300 Sight Range 16 Robot Scan Range 14 Terrain Scan Density 10 Power Shielding 66 Evasion (%) 50 Targeting Accuracy 5 Recoil Reduction 2 Item Schematics ----------------- None Robot Schematics ------------------ None Fabricated ------------ Nothing Alien Tech Used ----------------- None Achievements -------------- None Challenges ------------ None Game ------ Seed GhostHeatStorage Manual? 0 Play Time 00:22:00 Cumulative 5.4 hours Start 2025.03.03 @ 21:38:40 End 2025.03.03 @ 21:59:32 Sessions 1 Manual Loads 0 Difficulty Rogue Special Mode None Game No. 13 Rogue 13 Adventurer 0 Explorer 0 Win Type - Total 0 Types 0/0/0/0/0/0/0/0/0 Lore% 3 Gallery% 11 Achievement% 11 Wizard Run 0 Options --------- Layout 1 ASCII 0 Keyboard 0 Movement Arrows Keybinds 0 Fullscreen 1 Font 24/Smallcaps Map View 50x35 Zoom Use 0% Tactical HUD 0 Map Filters NONE Filters NONE Steam 1 RUN: f6cb8d59-f707-489a-a9ef-6f5bc699515b